bitfinex-derivatives/quotes_SOLF0:USTF0_20250909
["timestamp","ask_amount","ask_price","bid_price","bid_amount"]
[1757383605409,4.2233,213.09,213.08,2.72]
[1757383605609,4.2233,213.09,213.08,2.66159898]
[1757383606204,65.6852,213.12,213.07,2.72]
[1757383606509,7.62,213.11,213.07,5.38159898]
[1757383606707,65.6852,213.12,213.07,5.38159898]
[1757383607112,7.62,213.11,213.07,5.38159898]
[1757383607411,7.62,213.11,213.07,2.66159898]
[1757383607611,7.62,213.11,213.08,2.72]
[1757383609015,7.62,213.11,213.07,2.66159898]
[1757383609511,7.62,213.11,213.06,121.0]
[1757383609815,65.6852,213.12,213.06,121.0]
[1757383610012,7.62,213.11,213.06,121.0]
[1757383610213,65.6852,213.12,213.06,121.0]
[1757383610413,7.62,213.11,213.06,121.0]
[1757383610618,65.6852,213.12,213.06,121.0]
[1757383610812,7.62,213.11,213.06,121.0]
[1757383611012,65.6852,213.12,213.06,121.0]
[1757383611414,7.62,213.11,213.06,91.765]
[1757383611614,7.62,213.11,213.06,63.3887]
[1757383611814,65.6852,213.12,213.06,63.3887]
[1757383612318,7.62,213.11,213.02,115.72]
[1757383612820,7.62,213.11,213.02,118.38159898]
[1757383613220,7.62,213.11,213.02,115.72]
[1757383613517,5.25546169,213.12,213.0,118.48]
[1757383613719,7.62,213.09,213.0,121.14159898]
[1757383614222,7.62,213.09,213.0,121.20159898]
[1757383614418,7.62,213.09,213.0,5.38159898]
[1757383614621,7.62,213.09,213.0,121.18159898]
[1757383614922,12.87546169,213.09,213.0,121.18159898]
[1757383615118,7.62,213.08,213.0,121.18159898]
[1757383615317,5.25546169,213.09,213.0,2.72]
[1757383615524,7.62,213.08,213.0,2.72]
[1757383616025,7.62,213.07,212.99,115.78]
[1757383616616,5.25546169,213.09,212.99,115.78]
[1757383616817,5.25546169,213.09,212.98,115.76]
[1757383617023,5.25546169,213.09,212.97,2.72]
[1757383617229,7.62,213.08,212.97,118.5]
[1757383618024,7.62,213.07,212.97,118.5]
[1757383618219,5.25546169,213.08,212.97,118.5]
[1757383618422,7.62,213.07,212.97,121.16159898]
[1757383620726,7.62,213.07,212.97,121.08159898]
[1757383621726,5.25546169,213.07,212.97,121.08159898]
[1757383621922,7.62,213.06,212.97,121.08159898]
[1757383622229,7.62,213.02,212.91,2.72]
[1757383622432,1.70844225,213.0,212.94,2.72]
[1757383622626,7.62,213.02,212.95,1.70844225]
[1757383622627,9.32844225,213.02,212.95,1.70844225]
[1757383623334,9.32844225,213.0,212.94,2.72]
[1757383625129,7.62,213.0,212.94,2.72]
[1757383626325,7.62,213.01,212.94,2.72]
[1757383626531,7.62,213.02,212.96,1.70844225]
[1757383627131,7.62,213.02,212.94,2.72]
[1757383627332,7.62,213.02,212.96,1.70844225]
[1757383629235,9.32844225,213.02,212.96,1.70844225]
[1757383629436,7.62,213.02,212.96,1.70844225]
[1757383629830,1.70844225,213.01,212.87,2.72]
[1757383630037,7.62,212.96,212.89,1.70844225]
[1757383630430,7.62,212.94,212.89,1.70844225]
[1757383630833,1.70844225,212.95,212.89,1.70844225]
[1757383631229,7.62,212.94,212.89,1.70844225]
[1757383631428,7.62,212.94,212.88,1.70844225]
[1757383632331,7.62,212.94,212.87,2.72]
[1757383632634,7.62,212.94,212.88,1.70844225]
[1757383633832,7.27,212.92,212.86,1.70844225]
[1757383634329,7.27,212.92,212.88,4.42844225]
[1757383634730,7.27,212.92,212.89,2.72]
[1757383635836,7.27,212.92,212.83,2.72]
[1757383636031,7.27,212.94,212.87,1.70844225]
[1757383637936,1.70844225,212.93,212.87,1.70844225]
[1757383638334,7.27,212.94,212.87,1.70844225]
[1757383638538,1.70844225,212.97,212.89,1.70844225]
[1757383638738,7.27,212.96,212.9,1.70844225]
[1757383639141,1.70844225,212.95,212.9,1.70844225]
[1757383639536,7.27,212.94,212.9,1.70844225]
[1757383639731,7.27,213.0,212.9,1.70844225]
[1757383640038,7.27,212.94,212.9,1.70844225]
[1757383640540,7.27,212.94,212.88,2.72]
[1757383640740,7.27,212.94,212.88,4.42844225]
[1757383642447,7.27,212.94,212.88,2.72]
[1757383642646,8.97844225,212.94,212.88,4.42844225]
[1757383643338,7.27,212.94,212.88,4.42844225]
[1757383644446,7.27,212.92,212.86,1.70844225]
[1757383644643,7.27,212.92,212.78,315.54]
[1757383644644,1.70844225,212.89,212.79,2.72]
[1757383644839,1.70844225,212.89,212.82,1.70844225]
[1757383645537,7.27,212.9,212.82,1.70844225]
[1757383645738,7.27,212.9,212.84,1.70844225]
[1757383645940,7.27,212.9,212.87,2.72]
[1757383646244,1.70844225,212.93,212.87,2.72]
[1757383646446,1.70844225,212.93,212.88,1.70844225]
[1757383646645,7.27,212.93,212.89,2.72]
[1757383646836,7.27,212.93,212.89,4.42844225]
[1757383648848,7.27,212.94,212.89,4.42844225]
[1757383649044,1.70844225,212.95,212.89,1.70844225]
[1757383649240,7.27,212.94,212.89,1.70844225]
[1757383649743,8.97844225,212.95,212.89,1.70844225]
[1757383650451,1.70844225,212.93,212.87,1.70844225]
[1757383650748,8.97844225,212.93,212.87,1.70844225]
[1757383652044,8.97844225,212.93,212.85,1.70844225]
[1757383652850,1.70844225,212.91,212.83,1.70844225]
[1757383653047,7.27,212.9,212.83,1.70844225]
[1757383655151,1.70844225,212.89,212.83,1.70844225]
[1757383655546,7.27,212.88,212.83,1.70844225]
[1757383655748,1.70844225,212.87,212.81,1.70844225]
[1757383655952,8.97844225,212.87,212.81,1.70844225]
[1757383656154,8.97844225,212.87,212.79,1.70844225]
[1757383656853,8.97844225,212.87,212.81,1.70844225]
[1757383657353,8.97844225,212.87,212.7,2.72]
[1757383657354,1.70844225,212.85,212.7,2.72]
[1757383657555,7.27,212.84,212.78,1.70844225]
[1757383658053,1.70844225,212.83,212.76,4.42844225]
[1757383658751,7.27,212.84,212.78,1.70844225]
[1757383660250,7.27,212.84,212.8,1.70844225]
[1757383660449,1.70844225,212.87,212.81,2.74]
[1757383661452,7.27,212.88,212.82,1.70844225]
[1757383661856,7.27,212.88,212.84,1.70844225]
[1757383662056,7.27,212.9,212.84,1.70844225]
[1757383663550,7.27,212.9,212.87,2.74]
[1757383663951,7.27,212.9,212.86,1.70844225]
[1757383664657,7.27,212.9,212.83,2.74]
[1757383664859,7.27,212.9,212.87,1.70844225]
[1757383665249,7.13,212.92,212.85,1.70844225]
[1757383665756,1.70844225,212.91,212.85,1.70844225]
[1757383666255,7.13,212.9,212.85,1.70844225]
[1757383666649,1.70844225,212.91,212.85,1.70844225]
[1757383666857,1.70844225,212.91,212.84,1.70844225]
[1757383666858,7.13,212.9,212.84,1.70844225]
[1757383667056,1.70844225,212.89,212.84,1.70844225]
[1757383667456,7.13,212.88,212.83,1.70844225]
[1757383667858,5.25546169,212.92,212.83,1.70844225]
[1757383668062,7.13,212.88,212.83,1.70844225]
[1757383668363,8.83844225,212.89,212.83,1.70844225]
[1757383668862,7.13,212.89,212.83,1.70844225]
[1757383669657,7.13,212.83,212.71,2.74]
[1757383669859,7.13,212.83,212.76,1.70844225]
[1757383673062,1.70844225,212.82,212.76,1.70844225]
[1757383674163,7.13,212.81,212.76,1.70844225]
[1757383674559,1.70844225,212.82,212.76,1.70844225]
[1757383675162,7.13,212.81,212.76,1.70844225]
[1757383675464,1.70844225,212.82,212.76,1.70844225]
[1757383675665,7.13,212.81,212.76,1.70844225]
[1757383675866,8.83844225,212.82,212.76,1.70844225]
[1757383677265,7.13,212.82,212.76,1.70844225]
[1757383677463,8.83844225,212.85,212.79,1.70844225]
[1757383677858,7.13,212.85,212.79,1.70844225]
[1757383679065,7.13,212.85,212.81,1.70844225]
[1757383679260,1.70844225,212.87,212.81,4.44844225]
[1757383679261,7.13,212.86,212.81,4.44844225]
[1757383679464,1.70844225,212.87,212.81,4.44844225]
[1757383679663,1.70844225,212.87,212.81,1.70844225]
[1757383679858,8.83844225,212.87,212.81,1.70844225]
[1757383680864,7.13,212.87,212.81,1.70844225]
[1757383681561,7.13,212.87,212.8,1.70844225]
[1757383682059,7.13,212.87,212.73,2.74]
[1757383682060,7.13,212.83,212.73,2.74]
[1757383682257,7.13,212.83,212.76,1.70844225]
[1757383682464,7.13,212.81,212.76,1.70844225]
[1757383682661,1.70844225,212.82,212.76,1.70844225]
[1757383683568,7.13,212.81,212.76,1.70844225]
[1757383683959,1.70844225,212.82,212.76,1.70844225]
[1757383684166,7.13,212.81,212.76,1.70844225]
[1757383684363,7.13,212.83,212.73,2.74]
[1757383689971,7.13,212.83,212.76,2.74]
[1757383690170,7.13,212.87,212.79,2.74]
[1757383690371,15.05972795,212.87,212.73,2.67426626]
[1757383690671,7.13,212.83,212.73,2.67426626]
[1757383691067,12.38546169,212.86,212.76,2.67426626]
[1757383691276,7.13,212.86,212.77,2.74]
[1757383693372,2.67426626,212.86,212.72,34.88]
[1757383693575,7.82,212.85,212.74,2.67426626]
[1757383693877,7.82,212.85,212.75,2.75]
[1757383694975,7.82,212.85,212.74,2.67426626]
[1757383695183,5.25546169,212.83,212.72,2.75]
[1757383695477,13.07546169,212.82,212.72,2.75]
[1757383696076,5.25546169,212.8,212.71,2.67426626]
[1757383696279,7.82,212.8,212.71,2.67426626]
[1757383697178,7.82,212.8,212.71,5.42426626]
[1757383697577,7.82,212.8,212.72,2.75]
[1757383700179,5.25546169,212.81,212.74,2.67426626]
[1757383700476,7.82,212.83,212.75,2.75]
[1757383702688,13.07546169,212.83,212.72,5.42426626]
[1757383703377,5.25546169,212.82,212.72,5.42426626]
[1757383703576,7.82,212.81,212.72,5.42426626]
[1757383705477,5.25546169,212.83,212.75,2.67426626]
[1757383705677,5.25546169,212.83,212.72,63.0]
[1757383705678,5.25546169,212.84,212.73,2.67426626]
[1757383705872,46.54520873,212.92,212.73,2.67426626]
[1757383705873,13.07546169,212.83,212.73,2.67426626]
[1757383706677,7.82,212.81,212.73,2.67426626]
[1757383706875,7.82,212.81,212.74,2.75]
[1757383707983,13.07546169,212.81,212.74,2.75]
[1757383710192,13.07546169,212.81,212.73,2.67426626]
[1757383711084,5.25546169,212.8,212.73,2.67426626]
[1757383711286,13.07546169,212.81,212.73,2.67426626]
[1757383711585,13.07546169,212.81,212.72,2.67426626]
[1757383712085,7.82,212.79,212.72,2.67426626]
[1757383712487,7.82,212.79,212.71,2.75]
[1757383714181,13.07546169,212.79,212.71,2.75]
[1757383714689,7.82,212.79,212.71,2.75]
[1757383717386,13.07546169,212.79,212.71,2.75]
[1757383719794,7.86390655,212.81,212.71,2.75]
[1757383719795,7.82,212.77,212.71,2.75]
[1757383720696,13.07546169,212.77,212.71,2.75]
[1757383720990,7.82,212.77,212.71,2.75]
[1757383721189,13.07546169,212.77,212.71,2.75]
[1757383722293,7.82,212.77,212.7,2.67426626]
[1757383722700,7.82,212.77,212.69,2.75]
[1757383723086,13.07546169,212.77,212.69,2.75]
[1757383723397,7.82,212.77,212.69,2.75]
[1757383724297,13.07546169,212.77,212.69,2.75]
[1757383725498,13.07546169,212.77,212.69,5.42426626]
[1757383728602,13.07546169,212.77,212.69,2.75]
[1757383728797,5.25546169,212.77,212.72,2.67426626]
[1757383729003,7.12,212.79,212.75,5.41426626]
[1757383730905,7.12,212.79,212.75,2.67426626]
[1757383731203,7.12,212.8,212.75,2.67426626]
[1757383731804,5.25546169,212.81,212.75,2.67426626]
[1757383732103,7.12,212.8,212.75,2.67426626]
[1757383732304,5.25546169,212.81,212.75,2.67426626]
[1757383733303,7.12,212.8,212.75,2.67426626]
[1757383733504,5.25546169,212.81,212.75,2.67426626]
[1757383733695,7.12,212.8,212.75,2.67426626]
[1757383733896,5.25546169,212.81,212.75,2.67426626]
[1757383734099,7.12,212.8,212.75,2.67426626]
[1757383735205,5.25546169,212.81,212.75,2.67426626]
[1757383735509,7.12,212.8,212.75,2.67426626]
[1757383735707,5.25546169,212.81,212.75,2.67426626]
[1757383736109,7.12,212.8,212.75,2.67426626]
[1757383736508,7.12,212.8,212.75,5.41426626]
[1757383736704,5.25546169,212.81,212.75,5.41426626]
[1757383736907,7.12,212.8,212.75,5.41426626]
[1757383737108,5.25546169,212.81,212.75,5.41426626]
[1757383737306,7.12,212.79,212.75,5.41426626]
[1757383737506,5.25546169,212.8,212.75,5.41426626]
[1757383738008,7.12,212.79,212.75,5.41426626]
[1757383738403,5.25546169,212.8,212.75,5.41426626]
[1757383738607,7.12,212.79,212.75,5.41426626]
[1757383740107,5.25546169,212.8,212.75,5.41426626]
[1757383740306,7.12,212.79,212.75,5.41426626]
[1757383740610,5.25546169,212.81,212.75,2.67426626]
[1757383740799,5.25546169,212.82,212.72,2.74]
[1757383741000,5.25546169,212.83,212.78,2.67426626]
[1757383741205,5.25546169,212.85,212.79,2.74]
[1757383741602,5.25546169,212.85,212.82,2.74]
[1757383741803,5.25546169,212.89,212.85,2.74]
[1757383742009,5.25546169,212.91,212.88,2.74]
[1757383742309,5.25546169,212.92,212.87,2.67426626]
[1757383742509,7.12,212.91,212.87,2.67426626]
[1757383742710,5.25546169,212.92,212.87,2.67426626]
[1757383743111,7.12,212.9,212.87,2.67426626]
[1757383743310,7.12,212.9,212.81,2.67426626]
[1757383743502,7.12,212.87,212.81,2.67426626]
[1757383743708,7.12,212.87,212.78,217.00503007]
[1757383744013,12.37546169,212.87,212.78,100.52503007]
[1757383744209,7.12,212.87,212.78,100.52503007]
[1757383744407,7.12,212.87,212.78,217.00503007]
[1757383744806,12.37546169,212.87,212.78,217.00503007]
[1757383745113,7.12,212.87,212.79,2.74]
[1757383745808,12.37546169,212.87,212.79,2.74]
[1757383746311,5.25546169,212.87,212.82,1.7104081]
[1757383746908,7.12,212.86,212.82,1.7104081]
[1757383747309,5.25546169,212.88,212.82,1.7104081]
[1757383747503,7.12,212.87,212.82,1.7104081]
[1757383748211,7.12,212.88,212.82,1.7104081]
[1757383748711,12.37546169,212.88,212.82,1.7104081]
[1757383749307,7.12,212.88,212.82,1.7104081]
[1757383750512,12.37546169,212.89,212.83,1.7104081]
[1757383750808,12.37546169,212.89,212.85,1.7104081]
[1757383750809,5.25546169,212.89,212.85,1.7104081]
[1757383751012,7.12,212.88,212.85,1.7104081]
[1757383751505,5.25546169,212.91,212.85,1.7104081]
[1757383751714,7.12,212.94,212.91,2.74]
[1757383751910,7.12,212.94,212.93,1.7104081]
[1757383753116,7.12,212.99,212.91,2.74]
[1757383753417,7.12,212.99,212.94,1.7104081]
[1757383753617,14.08586979,212.99,212.92,1.7104081]
[1757383754005,7.26,212.97,212.91,1.7104081]
[1757383754206,8.9704081,212.97,212.91,1.7104081]
[1757383754408,7.26,212.94,212.87,1.7104081]
[1757383756312,7.26,212.92,212.87,1.7104081]
[1757383756516,7.26,212.92,212.81,2.73]
[1757383756517,7.26,212.92,212.81,67.81]
[1757383756712,7.26,212.92,212.86,1.7104081]
[1757383757515,12.51546169,212.92,212.86,1.7104081]
[1757383758213,7.26,212.92,212.86,1.7104081]
[1757383759419,7.26,212.9,212.84,1.7104081]
[1757383760115,7.26,212.9,212.81,2.73]
[1757383760322,7.26,212.88,212.82,1.7104081]
[1757383762220,8.9704081,212.88,212.82,1.7104081]
[1757383766521,7.26,212.88,212.82,1.7104081]
[1757383776632,12.51546169,212.88,212.82,1.7104081]
[1757383776832,7.26,212.88,212.82,1.7104081]
[1757383777028,12.51546169,212.88,212.82,1.7104081]
[1757383778532,5.25546169,212.87,212.82,1.7104081]
[1757383778732,12.51546169,212.88,212.82,1.7104081]
[1757383779234,5.25546169,212.87,212.82,1.7104081]
[1757383779435,7.26,212.86,212.82,1.7104081]
[1757383779634,6.96586979,212.88,212.82,1.7104081]
[1757383780030,7.26,212.87,212.82,1.7104081]
[1757383780233,5.25546169,212.88,212.82,1.7104081]
[1757383780936,7.26,212.87,212.82,1.7104081]
[1757383781337,7.26,212.86,212.82,1.7104081]
[1757383781536,5.25546169,212.87,212.82,1.7104081]
[1757383782036,5.25546169,212.88,212.82,1.7104081]
[1757383782236,12.51546169,212.87,212.82,1.7104081]
[1757383782436,5.25546169,212.87,212.82,1.7104081]
[1757383782835,7.26,212.86,212.82,1.7104081]
[1757383783228,5.25546169,212.87,212.82,1.7104081]
[1757383783435,7.38,212.86,212.82,1.7104081]
[1757383783635,7.38,212.86,212.83,2.74]
[1757383783836,7.38,212.86,212.83,4.4504081]
[1757383785438,12.63546169,212.86,212.83,4.4504081]
[1757383785639,5.25546169,212.86,212.85,4.4504081]
[1757383785838,12.63546169,212.91,212.86,2.74]
[1757383786040,12.63546169,212.91,212.9,1.7104081]
[1757383786232,5.25546169,212.91,212.9,1.7104081]
[1757383786742,5.25546169,212.91,212.9,4.4504081]
[1757383786933,5.25546169,212.92,212.91,2.74]
[1757383787136,5.25546169,212.92,212.91,4.4504081]
[1757383787336,5.25546169,212.94,212.92,2.74]
[1757383787539,5.25546169,212.96,212.93,4.4504081]
[1757383787741,5.25546169,212.96,212.95,1.7104081]
[1757383788346,5.25546169,212.97,212.95,1.7104081]
[1757383790141,12.63546169,212.97,212.95,1.7104081]
[1757383790343,7.38,212.97,212.95,1.7104081]
[1757383791643,5.25546169,212.98,212.95,1.7104081]
[1757383791840,5.25546169,212.99,212.97,1.7104081]
[1757383792140,5.25546169,212.99,212.95,1.7104081]
[1757383792941,7.38,212.97,212.95,1.7104081]
[1757383793845,5.25546169,212.99,212.95,1.7104081]
[1757383793846,7.38,212.98,212.95,1.7104081]
[1757383794042,5.25546169,212.98,212.95,1.7104081]
[1757383794246,7.38,212.97,212.95,1.7104081]
[1757383794643,5.25546169,212.98,212.95,1.7104081]
[1757383795242,7.38,212.97,212.95,1.7104081]
[1757383795444,5.25546169,212.98,212.95,1.7104081]
[1757383796149,7.38,212.97,212.95,1.7104081]
[1757383796350,5.25546169,212.98,212.95,1.7104081]
[1757383796556,7.38,212.97,212.95,1.7104081]
[1757383797551,5.25546169,212.98,212.95,1.7104081]
[1757383797850,7.38,212.97,212.95,1.7104081]
[1757383798448,7.38,212.98,212.95,1.7104081]
[1757383799452,5.25546169,213.0,212.95,1.7104081]
[1757383800248,7.38,212.99,212.92,2.74]
[1757383800446,7.38,212.99,212.96,1.7104081]
[1757383800850,7.38,212.99,212.96,4.4504081]
[1757383801150,5.25546169,213.0,212.98,1.7104081]
[1757383801347,7.38,213.0,212.98,1.7104081]
[1757383801548,5.25546169,213.0,212.98,1.7104081]
[1757383801854,7.38,212.99,212.98,1.7104081]
[1757383805463,7.38,213.0,212.98,1.7104081]
[1757383805656,5.25546169,213.02,212.99,1.7104081]
[1757383805858,5.25546169,213.03,212.99,1.7104081]
[1757383806156,7.38,213.02,212.99,1.7104081]
[1757383806360,7.38,213.02,212.96,5.40837805]
[1757383807060,12.63546169,213.02,212.96,2.66837805]
[1757383807262,7.38,213.02,212.96,2.66837805]
[1757383807964,5.25546169,213.0,212.9,2.66837805]
[1757383808168,12.63546169,212.99,212.9,2.66837805]
[1757383808760,12.63546169,212.99,212.89,2.74]
[1757383809265,12.63546169,212.97,212.89,2.74]
[1757383809463,7.38,212.97,212.91,2.66837805]
[1757383809668,7.38,212.97,212.92,2.74]
[1757383809864,7.38,212.97,212.91,2.66837805]
[1757383810068,7.38,212.97,212.92,2.74]
[1757383810370,7.38,212.97,212.91,5.40837805]
[1757383812961,5.25546169,212.99,212.92,2.74]
[1757383813168,7.38,213.0,212.94,2.66837805]
[1757383813363,7.38,213.0,212.87,2.74]
[1757383813571,12.46546169,212.97,212.88,2.66837805]
[1757383813871,12.46546169,212.97,212.87,5.40837805]
[1757383814263,12.46546169,212.97,212.87,2.66837805]
[1757383814460,5.25546169,212.96,212.84,2.66837805]
[1757383814666,12.46546169,212.93,212.84,2.66837805]
[1757383815571,7.21,212.93,212.85,2.74]
[1757383815973,7.21,212.93,212.87,2.66837805]
[1757383817773,7.21,212.93,212.85,2.74]
[1757383817774,7.21,212.93,212.85,5.40837805]
[1757383819775,7.21,212.93,212.86,2.74]
[1757383820780,7.21,212.93,212.89,2.74]
[1757383821176,7.21,212.93,212.88,2.66837805]
[1757383821369,7.21,212.93,212.89,2.74]
[1757383821880,7.21,212.95,212.88,2.66837805]
[1757383822783,12.46546169,212.95,212.88,2.66837805]
[1757383823083,7.21,212.95,212.88,2.66837805]
[1757383823382,12.46546169,212.95,212.88,2.66837805]
[1757383823577,12.46546169,212.95,212.85,5.40837805]
[1757383823775,7.21,212.93,212.85,49.16837805]
[1757383824474,5.25546169,212.93,212.82,318.50837805]
[1757383824673,7.21,212.9,212.82,318.50837805]
[1757383828174,12.46546169,212.9,212.82,318.50837805]
[1757383828683,12.46546169,212.9,212.82,2.66837805]
[1757383832992,12.46546169,212.9,212.81,119.18]
[1757383833193,7.21,212.89,212.81,121.84837805]
[1757383836787,12.46546169,212.89,212.78,2.66837805]
[1757383836993,12.46546169,212.89,212.78,5.40837805]
[1757383837293,7.21,212.87,212.77,116.36]
[1757383837493,7.21,212.86,212.77,116.36]
[1757383837808,5.25546169,212.87,212.77,116.36]
[1757383838004,7.21,212.86,212.77,116.36]
[1757383838593,5.25546169,212.87,212.77,116.36]
[1757383838896,5.25546169,212.86,212.77,116.36]
[1757383839092,7.21,212.85,212.77,116.36]
[1757383839290,5.25546169,212.86,212.77,116.36]
[1757383840395,7.21,212.85,212.77,116.36]
[1757383843101,5.25546169,212.86,212.77,116.36]
[1757383843297,2.66837805,212.85,212.77,116.36]
[1757383843601,7.55,212.84,212.77,116.36]
[1757383846702,7.55,212.84,212.77,119.09]
[1757383847902,7.55,212.84,212.78,2.73]
[1757383848703,10.21837805,212.88,212.78,2.73]
[1757383849105,10.21837805,212.88,212.79,2.73]
[1757383850804,7.55,212.88,212.79,2.73]
[1757383852004,5.25546169,212.89,212.82,2.73]
[1757383852208,12.80546169,212.91,212.82,2.73]
[1757383852602,7.55,212.91,212.82,2.73]
[1757383854010,7.55,212.91,212.85,2.73]
[1757383858212,12.80546169,212.91,212.85,2.73]
[1757383863214,12.80546169,212.91,212.82,2.73]
[1757383863413,7.55,212.89,212.82,2.73]
[1757383863610,5.25546169,212.87,212.78,5.39837805]
[1757383863815,12.80546169,212.86,212.78,5.39837805]
[1757383864217,7.55,212.86,212.79,2.73]
[1757383866422,12.80546169,212.86,212.79,2.73]
[1757383868426,12.80546169,212.86,212.8,1.71060067]
[1757383868626,12.80546169,212.86,212.83,2.73]
[1757383869026,7.55,212.85,212.82,1.71060067]
[1757383869330,12.80546169,212.87,212.84,1.71060067]
[1757383870425,5.25546169,212.87,212.84,1.71060067]
[1757383870628,7.55,212.86,212.82,1.71060067]
[1757383870823,5.25546169,212.87,212.82,1.71060067]
[1757383872124,7.55,212.86,212.82,1.71060067]
[1757383872326,5.25546169,212.87,212.82,1.71060067]
[1757383872527,7.55,212.86,212.82,1.71060067]
[1757383872729,5.25546169,212.87,212.82,1.71060067]
[1757383872928,7.55,212.86,212.82,1.71060067]
[1757383873128,5.25546169,212.87,212.82,1.71060067]
[1757383873322,7.65,212.86,212.82,1.71060067]
[1757383873922,5.25546169,212.87,212.82,1.71060067]
[1757383874228,7.65,212.86,212.82,1.71060067]
[1757383874425,5.25546169,212.87,212.82,1.71060067]
[1757383874622,7.65,212.86,212.82,1.71060067]
[1757383874927,5.25546169,212.87,212.82,1.71060067]
[1757383875127,7.65,212.86,212.82,1.71060067]
[1757383875732,5.25546169,212.87,212.82,1.71060067]
[1757383875921,7.65,212.86,212.82,1.71060067]
[1757383876630,5.25546169,212.87,212.82,1.71060067]
[1757383876829,7.65,212.86,212.82,1.71060067]
[1757383877128,5.25546169,212.87,212.82,1.71060067]
[1757383877330,7.65,212.86,212.82,1.71060067]
[1757383877525,5.25546169,212.87,212.82,1.71060067]
[1757383878031,7.65,212.86,212.82,1.71060067]
[1757383878630,5.25546169,212.87,212.82,1.71060067]
[1757383878835,7.65,212.86,212.82,1.71060067]
[1757383879231,7.65,212.86,212.82,4.44060067]
[1757383881236,7.65,212.86,212.82,1.71060067]
[1757383881437,7.65,212.86,212.83,2.73]
[1757383881636,5.25546169,212.87,212.82,1.71060067]
[1757383881834,5.25546169,212.86,212.82,1.71060067]
[1757383882027,7.65,212.85,212.78,2.73]
[1757383882226,5.25546169,212.86,212.82,1.71060067]
[1757383882836,7.65,212.85,212.82,1.71060067]
[1757383883137,5.25546169,212.84,212.78,1.71060067]
[1757383883432,5.25546169,212.83,212.78,1.71060067]
[1757383883931,7.65,212.83,212.78,1.71060067]
[1757383884131,7.65,212.83,212.8,1.71060067]
[1757383884336,5.25546169,212.84,212.8,1.71060067]
[1757383884537,7.65,212.83,212.8,1.71060067]
[1757383884730,5.25546169,212.84,212.8,1.71060067]
[1757383884926,7.65,212.83,212.8,1.71060067]
[1757383885130,5.25546169,212.84,212.8,1.71060067]
[1757383885331,7.65,212.83,212.8,1.71060067]
[1757383885627,5.25546169,212.85,212.8,1.71060067]
[1757383885829,7.65,212.84,212.8,1.71060067]
[1757383886032,5.25546169,212.85,212.8,1.71060067]
[1757383886233,7.65,212.84,212.8,1.71060067]
[1757383886834,5.25546169,212.85,212.8,1.71060067]
[1757383887241,12.90546169,212.84,212.8,1.71060067]
[1757383887441,5.25546169,212.85,212.8,1.71060067]
[1757383888040,7.65,212.83,212.8,1.71060067]
[1757383889044,5.25546169,212.84,212.8,1.71060067]
[1757383889340,7.65,212.83,212.8,1.71060067]
[1757383889542,7.65,212.83,212.8,4.44060067]
[1757383890538,7.65,212.83,212.8,1.71060067]
[1757383890935,5.25546169,212.84,212.8,1.71060067]
[1757383891141,7.65,212.83,212.8,1.71060067]
[1757383891443,5.25546169,212.84,212.8,1.71060067]
[1757383891640,7.65,212.83,212.8,1.71060067]
[1757383891834,5.25546169,212.84,212.8,1.71060067]
[1757383892137,7.65,212.83,212.8,1.71060067]
[1757383892644,5.25546169,212.83,212.8,1.71060067]
[1757383892944,5.25546169,212.82,212.78,1.71060067]
[1757383893340,7.65,212.81,212.78,1.71060067]
[1757383893737,5.25546169,212.82,212.78,1.71060067]
[1757383893943,7.65,212.81,212.78,1.71060067]
[1757383894542,7.65,212.81,212.78,4.44060067]
[1757383894939,7.65,212.81,212.77,1.71060067]
[1757383895136,5.25546169,212.81,212.77,1.71060067]
[1757383895342,7.65,212.8,212.77,1.71060067]
[1757383895736,5.25546169,212.81,212.77,1.71060067]